Workbook

Sheet 1
B2: janeiro | J2: 2016 | O2: Domingo
B3: Mês do Calendário | J3: Ano do Calendário | O3: Primeiro dia da semana
B5: =INDEX(calendário,,1) -> 42365 | G5: =INDEX(calendário,,2) -> 42366 | L5: =INDEX(calendário,,3) -> 42367 | Q5: =INDEX(calendário,,4) -> 42368 | V5: =INDEX(calendário,,5) -> 42369 | AA5: =INDEX(calendário,,6) -> 42370 | AF5: =INDEX(calendário,,7) -> 42371
C6: =INDEX(calendário,ndx+0,1) -> 2015-12-27 | H6: =INDEX(calendário,ndx+0,2) -> 2015-12-28 | M6: =INDEX(calendário,ndx+0,3) -> 2015-12-29 | R6: =INDEX(calendário,ndx+0,4) -> 2015-12-30 | W6: =INDEX(calendário,ndx+0,5) -> 2015-12-31 | AB6: =INDEX(calendário,ndx+0,6) -> 2016-01-01 | AG6: =INDEX(calendário,ndx+0,7) -> 2016-01-02
C8: =INDEX(calendário,ndx+1,1) -> 2016-01-03 | H8: =INDEX(calendário,ndx+1,2) -> 2016-01-04 | M8: =INDEX(calendário,ndx+1,3) -> 2016-01-05 | R8: =INDEX(calendário,ndx+1,4) -> 2016-01-06 | W8: =INDEX(calendário,ndx+1,5) -> 2016-01-07 | AB8: =INDEX(calendário,ndx+1,6) -> 2016-01-08 | AG8: =INDEX(calendário,ndx+1,7) -> 2016-01-09
C10: =INDEX(calendário,ndx+2,1) -> 2016-01-10 | H10: =INDEX(calendário,ndx+2,2) -> 2016-01-11 | M10: =INDEX(calendário,ndx+2,3) -> 2016-01-12 | R10: =INDEX(calendário,ndx+2,4) -> 2016-01-13 | W10: =INDEX(calendário,ndx+2,5) -> 2016-01-14 | AB10: =INDEX(calendário,ndx+2,6) -> 2016-01-15 | AG10: =INDEX(calendário,ndx+2,7) -> 2016-01-16
C12: =INDEX(calendário,ndx+3,1) -> 2016-01-17 | H12: =INDEX(calendário,ndx+3,2) -> 2016-01-18 | M12: =INDEX(calendário,ndx+3,3) -> 2016-01-19 | R12: =INDEX(calendário,ndx+3,4) -> 2016-01-20 | W12: =INDEX(calendário,ndx+3,5) -> 2016-01-21 | AB12: =INDEX(calendário,ndx+3,6) -> 2016-01-22 | AG12: =INDEX(calendário,ndx+3,7) -> 2016-01-23
C14: =INDEX(calendário,ndx+4,1) -> 2016-01-24 | H14: =INDEX(calendário,ndx+4,2) -> 2016-01-25 | M14: =INDEX(calendário,ndx+4,3) -> 2016-01-26 | R14: =INDEX(calendário,ndx+4,4) -> 2016-01-27 | W14: =INDEX(calendário,ndx+4,5) -> 2016-01-28 | AB14: =INDEX(calendário,ndx+4,6) -> 2016-01-29 | AG14: =INDEX(calendário,ndx+4,7) -> 2016-01-30
C16: =INDEX(calendário,ndx+5,1) -> 2016-01-31 | H16: =INDEX(calendário,ndx+5,2) -> 2016-02-01 | M16: =INDEX(calendário,ndx+5,3) -> 2016-02-02 | R16: =INDEX(calendário,ndx+5,4) -> 2016-02-03 | W16: =INDEX(calendário,ndx+5,5) -> 2016-02-04 | AB16: =INDEX(calendário,ndx+5,6) -> 2016-02-05 | AG16: =INDEX(calendário,ndx+5,7) -> 2016-02-06
C18: Anotações

Sheet 2
B2: =TEXT(EOMONTH('1'!$C$10,0)+1,"mmmm") -> fevereiro | J2: =YEAR(EOMONTH('1'!$C$10,0)+1) -> 2016 | O2: =DataParaIniciar -> Domingo
B3: Mês do Calendário | J3: Ano do Calendário | O3: Primeiro dia da semana
B5: =INDEX(calendário,,1) -> 42400 | G5: =INDEX(calendário,,2) -> 42401 | L5: =INDEX(calendário,,3) -> 42402 | Q5: =INDEX(calendário,,4) -> 42403 | V5: =INDEX(calendário,,5) -> 42404 | AA5: =INDEX(calendário,,6) -> 42405 | AF5: =INDEX(calendário,,7) -> 42406
C6: =INDEX(calendário,ndx+0,1) -> 2016-01-31 | H6: =INDEX(calendário,ndx+0,2) -> 2016-02-01 | M6: =INDEX(calendário,ndx+0,3) -> 2016-02-02 | R6: =INDEX(calendário,ndx+0,4) -> 2016-02-03 | W6: =INDEX(calendário,ndx+0,5) -> 2016-02-04 | AB6: =INDEX(calendário,ndx+0,6) -> 2016-02-05 | AG6: =INDEX(calendário,ndx+0,7) -> 2016-02-06
C8: =INDEX(calendário,ndx+1,1) -> 2016-02-07 | H8: =INDEX(calendário,ndx+1,2) -> 2016-02-08 | M8: =INDEX(calendário,ndx+1,3) -> 2016-02-09 | R8: =INDEX(calendário,ndx+1,4) -> 2016-02-10 | W8: =INDEX(calendário,ndx+1,5) -> 2016-02-11 | AB8: =INDEX(calendário,ndx+1,6) -> 2016-02-12 | AG8: =INDEX(calendário,ndx+1,7) -> 2016-02-13
C10: =INDEX(calendário,ndx+2,1) -> 2016-02-14 | H10: =INDEX(calendário,ndx+2,2) -> 2016-02-15 | M10: =INDEX(calendário,ndx+2,3) -> 2016-02-16 | R10: =INDEX(calendário,ndx+2,4) -> 2016-02-17 | W10: =INDEX(calendário,ndx+2,5) -> 2016-02-18 | AB10: =INDEX(calendário,ndx+2,6) -> 2016-02-19 | AG10: =INDEX(calendário,ndx+2,7) -> 2016-02-20
C12: =INDEX(calendário,ndx+3,1) -> 2016-02-21 | H12: =INDEX(calendário,ndx+3,2) -> 2016-02-22 | M12: =INDEX(calendário,ndx+3,3) -> 2016-02-23 | R12: =INDEX(calendário,ndx+3,4) -> 2016-02-24 | W12: =INDEX(calendário,ndx+3,5) -> 2016-02-25 | AB12: =INDEX(calendário,ndx+3,6) -> 2016-02-26 | AG12: =INDEX(calendário,ndx+3,7) -> 2016-02-27
C14: =INDEX(calendário,ndx+4,1) -> 2016-02-28 | H14: =INDEX(calendário,ndx+4,2) -> 2016-02-29 | M14: =INDEX(calendário,ndx+4,3) -> 2016-03-01 | R14: =INDEX(calendário,ndx+4,4) -> 2016-03-02 | W14: =INDEX(calendário,ndx+4,5) -> 2016-03-03 | AB14: =INDEX(calendário,ndx+4,6) -> 2016-03-04 | AG14: =INDEX(calendário,ndx+4,7) -> 2016-03-05
C16: =INDEX(calendário,ndx+5,1) -> 2016-03-06 | H16: =INDEX(calendário,ndx+5,2) -> 2016-03-07 | M16: =INDEX(calendário,ndx+5,3) -> 2016-03-08 | R16: =INDEX(calendário,ndx+5,4) -> 2016-03-09 | W16: =INDEX(calendário,ndx+5,5) -> 2016-03-10 | AB16: =INDEX(calendário,ndx+5,6) -> 2016-03-11 | AG16: =INDEX(calendário,ndx+5,7) -> 2016-03-12
C18: Anotações

Sheet 3
B2: =TEXT(EOMONTH('2'!$C$10,0)+1,"mmmm") -> março | J2: =YEAR(EOMONTH('2'!$C$10,0)+1) -> 2016 | O2: =DataParaIniciar -> Domingo
B3: Mês do Calendário | J3: Ano do Calendário | O3: Primeiro dia da semana
B5: =INDEX(calendário,,1) -> 42428 | G5: =INDEX(calendário,,2) -> 42429 | L5: =INDEX(calendário,,3) -> 42430 | Q5: =INDEX(calendário,,4) -> 42431 | V5: =INDEX(calendário,,5) -> 42432 | AA5: =INDEX(calendário,,6) -> 42433 | AF5: =INDEX(calendário,,7) -> 42434
C6: =INDEX(calendário,ndx+0,1) -> 2016-02-28 | H6: =INDEX(calendário,ndx+0,2) -> 2016-02-29 | M6: =INDEX(calendário,ndx+0,3) -> 2016-03-01 | R6: =INDEX(calendário,ndx+0,4) -> 2016-03-02 | W6: =INDEX(calendário,ndx+0,5) -> 2016-03-03 | AB6: =INDEX(calendário,ndx+0,6) -> 2016-03-04 | AG6: =INDEX(calendário,ndx+0,7) -> 2016-03-05
C8: =INDEX(calendário,ndx+1,1) -> 2016-03-06 | H8: =INDEX(calendário,ndx+1,2) -> 2016-03-07 | M8: =INDEX(calendário,ndx+1,3) -> 2016-03-08 | R8: =INDEX(calendário,ndx+1,4) -> 2016-03-09 | W8: =INDEX(calendário,ndx+1,5) -> 2016-03-10 | AB8: =INDEX(calendário,ndx+1,6) -> 2016-03-11 | AG8: =INDEX(calendário,ndx+1,7) -> 2016-03-12
C10: =INDEX(calendário,ndx+2,1) -> 2016-03-13 | H10: =INDEX(calendário,ndx+2,2) -> 2016-03-14 | M10: =INDEX(calendário,ndx+2,3) -> 2016-03-15 | R10: =INDEX(calendário,ndx+2,4) -> 2016-03-16 | W10: =INDEX(calendário,ndx+2,5) -> 2016-03-17 | AB10: =INDEX(calendário,ndx+2,6) -> 2016-03-18 | AG10: =INDEX(calendário,ndx+2,7) -> 2016-03-19
C12: =INDEX(calendário,ndx+3,1) -> 2016-03-20 | H12: =INDEX(calendário,ndx+3,2) -> 2016-03-21 | M12: =INDEX(calendário,ndx+3,3) -> 2016-03-22 | R12: =INDEX(calendário,ndx+3,4) -> 2016-03-23 | W12: =INDEX(calendário,ndx+3,5) -> 2016-03-24 | AB12: =INDEX(calendário,ndx+3,6) -> 2016-03-25 | AG12: =INDEX(calendário,ndx+3,7) -> 2016-03-26
C14: =INDEX(calendário,ndx+4,1) -> 2016-03-27 | H14: =INDEX(calendário,ndx+4,2) -> 2016-03-28 | M14: =INDEX(calendário,ndx+4,3) -> 2016-03-29 | R14: =INDEX(calendário,ndx+4,4) -> 2016-03-30 | W14: =INDEX(calendário,ndx+4,5) -> 2016-03-31 | AB14: =INDEX(calendário,ndx+4,6) -> 2016-04-01 | AG14: =INDEX(calendário,ndx+4,7) -> 2016-04-02
C16: =INDEX(calendário,ndx+5,1) -> 2016-04-03 | H16: =INDEX(calendário,ndx+5,2) -> 2016-04-04 | M16: =INDEX(calendário,ndx+5,3) -> 2016-04-05 | R16: =INDEX(calendário,ndx+5,4) -> 2016-04-06 | W16: =INDEX(calendário,ndx+5,5) -> 2016-04-07 | AB16: =INDEX(calendário,ndx+5,6) -> 2016-04-08 | AG16: =INDEX(calendário,ndx+5,7) -> 2016-04-09
C18: Anotações

Sheet 4
B2: =TEXT(EOMONTH('3'!$C$10,0)+1,"mmmm") -> abril | J2: =YEAR(EOMONTH('3'!$C$10,0)+1) -> 2016 | O2: =DataParaIniciar -> Domingo
B3: Mês do Calendário | J3: Ano do Calendário | O3: Primeiro dia da semana
B5: =INDEX(calendário,,1) -> 42456 | G5: =INDEX(calendário,,2) -> 42457 | L5: =INDEX(calendário,,3) -> 42458 | Q5: =INDEX(calendário,,4) -> 42459 | V5: =INDEX(calendário,,5) -> 42460 | AA5: =INDEX(calendário,,6) -> 42461 | AF5: =INDEX(calendário,,7) -> 42462
C6: =INDEX(calendário,ndx+0,1) -> 2016-03-27 | H6: =INDEX(calendário,ndx+0,2) -> 2016-03-28 | M6: =INDEX(calendário,ndx+0,3) -> 2016-03-29 | R6: =INDEX(calendário,ndx+0,4) -> 2016-03-30 | W6: =INDEX(calendário,ndx+0,5) -> 2016-03-31 | AB6: =INDEX(calendário,ndx+0,6) -> 2016-04-01 | AG6: =INDEX(calendário,ndx+0,7) -> 2016-04-02
C8: =INDEX(calendário,ndx+1,1) -> 2016-04-03 | H8: =INDEX(calendário,ndx+1,2) -> 2016-04-04 | M8: =INDEX(calendário,ndx+1,3) -> 2016-04-05 | R8: =INDEX(calendário,ndx+1,4) -> 2016-04-06 | W8: =INDEX(calendário,ndx+1,5) -> 2016-04-07 | AB8: =INDEX(calendário,ndx+1,6) -> 2016-04-08 | AG8: =INDEX(calendário,ndx+1,7) -> 2016-04-09
C10: =INDEX(calendário,ndx+2,1) -> 2016-04-10 | H10: =INDEX(calendário,ndx+2,2) -> 2016-04-11 | M10: =INDEX(calendário,ndx+2,3) -> 2016-04-12 | R10: =INDEX(calendário,ndx+2,4) -> 2016-04-13 | W10: =INDEX(calendário,ndx+2,5) -> 2016-04-14 | AB10: =INDEX(calendário,ndx+2,6) -> 2016-04-15 | AG10: =INDEX(calendário,ndx+2,7) -> 2016-04-16
C12: =INDEX(calendário,ndx+3,1) -> 2016-04-17 | H12: =INDEX(calendário,ndx+3,2) -> 2016-04-18 | M12: =INDEX(calendário,ndx+3,3) -> 2016-04-19 | R12: =INDEX(calendário,ndx+3,4) -> 2016-04-20 | W12: =INDEX(calendário,ndx+3,5) -> 2016-04-21 | AB12: =INDEX(calendário,ndx+3,6) -> 2016-04-22 | AG12: =INDEX(calendário,ndx+3,7) -> 2016-04-23
C14: =INDEX(calendário,ndx+4,1) -> 2016-04-24 | H14: =INDEX(calendário,ndx+4,2) -> 2016-04-25 | M14: =INDEX(calendário,ndx+4,3) -> 2016-04-26 | R14: =INDEX(calendário,ndx+4,4) -> 2016-04-27 | W14: =INDEX(calendário,ndx+4,5) -> 2016-04-28 | AB14: =INDEX(calendário,ndx+4,6) -> 2016-04-29 | AG14: =INDEX(calendário,ndx+4,7) -> 2016-04-30
C16: =INDEX(calendário,ndx+5,1) -> 2016-05-01 | H16: =INDEX(calendário,ndx+5,2) -> 2016-05-02 | M16: =INDEX(calendário,ndx+5,3) -> 2016-05-03 | R16: =INDEX(calendário,ndx+5,4) -> 2016-05-04 | W16: =INDEX(calendário,ndx+5,5) -> 2016-05-05 | AB16: =INDEX(calendário,ndx+5,6) -> 2016-05-06 | AG16: =INDEX(calendário,ndx+5,7) -> 2016-05-07
C18: Anotações

Sheet 5
B2: =TEXT(EOMONTH('4'!$C$10,0)+1,"mmmm") -> maio | J2: =YEAR(EOMONTH('4'!$C$10,0)+1) -> 2016 | O2: =DataParaIniciar -> Domingo
B3: Mês do Calendário | J3: Ano do Calendário | O3: Primeiro dia da semana
B5: =INDEX(calendário,,1) -> 42491 | G5: =INDEX(calendário,,2) -> 42492 | L5: =INDEX(calendário,,3) -> 42493 | Q5: =INDEX(calendário,,4) -> 42494 | V5: =INDEX(calendário,,5) -> 42495 | AA5: =INDEX(calendário,,6) -> 42496 | AF5: =INDEX(calendário,,7) -> 42497
C6: =INDEX(calendário,ndx+0,1) -> 2016-05-01 | H6: =INDEX(calendário,ndx+0,2) -> 2016-05-02 | M6: =INDEX(calendário,ndx+0,3) -> 2016-05-03 | R6: =INDEX(calendário,ndx+0,4) -> 2016-05-04 | W6: =INDEX(calendário,ndx+0,5) -> 2016-05-05 | AB6: =INDEX(calendário,ndx+0,6) -> 2016-05-06 | AG6: =INDEX(calendário,ndx+0,7) -> 2016-05-07
C8: =INDEX(calendário,ndx+1,1) -> 2016-05-08 | H8: =INDEX(calendário,ndx+1,2) -> 2016-05-09 | M8: =INDEX(calendário,ndx+1,3) -> 2016-05-10 | R8: =INDEX(calendário,ndx+1,4) -> 2016-05-11 | W8: =INDEX(calendário,ndx+1,5) -> 2016-05-12 | AB8: =INDEX(calendário,ndx+1,6) -> 2016-05-13 | AG8: =INDEX(calendário,ndx+1,7) -> 2016-05-14
C10: =INDEX(calendário,ndx+2,1) -> 2016-05-15 | H10: =INDEX(calendário,ndx+2,2) -> 2016-05-16 | M10: =INDEX(calendário,ndx+2,3) -> 2016-05-17 | R10: =INDEX(calendário,ndx+2,4) -> 2016-05-18 | W10: =INDEX(calendário,ndx+2,5) -> 2016-05-19 | AB10: =INDEX(calendário,ndx+2,6) -> 2016-05-20 | AG10: =INDEX(calendário,ndx+2,7) -> 2016-05-21
C12: =INDEX(calendário,ndx+3,1) -> 2016-05-22 | H12: =INDEX(calendário,ndx+3,2) -> 2016-05-23 | M12: =INDEX(calendário,ndx+3,3) -> 2016-05-24 | R12: =INDEX(calendário,ndx+3,4) -> 2016-05-25 | W12: =INDEX(calendário,ndx+3,5) -> 2016-05-26 | AB12: =INDEX(calendário,ndx+3,6) -> 2016-05-27 | AG12: =INDEX(calendário,ndx+3,7) -> 2016-05-28
C14: =INDEX(calendário,ndx+4,1) -> 2016-05-29 | H14: =INDEX(calendário,ndx+4,2) -> 2016-05-30 | M14: =INDEX(calendário,ndx+4,3) -> 2016-05-31 | R14: =INDEX(calendário,ndx+4,4) -> 2016-06-01 | W14: =INDEX(calendário,ndx+4,5) -> 2016-06-02 | AB14: =INDEX(calendário,ndx+4,6) -> 2016-06-03 | AG14: =INDEX(calendário,ndx+4,7) -> 2016-06-04
C16: =INDEX(calendário,ndx+5,1) -> 2016-06-05 | H16: =INDEX(calendário,ndx+5,2) -> 2016-06-06 | M16: =INDEX(calendário,ndx+5,3) -> 2016-06-07 | R16: =INDEX(calendário,ndx+5,4) -> 2016-06-08 | W16: =INDEX(calendário,ndx+5,5) -> 2016-06-09 | AB16: =INDEX(calendário,ndx+5,6) -> 2016-06-10 | AG16: =INDEX(calendário,ndx+5,7) -> 2016-06-11
C18: Anotações

Sheet 6
B2: =TEXT(EOMONTH('5'!$C$10,0)+1,"mmmm") -> junho | J2: =YEAR(EOMONTH('5'!$C$10,0)+1) -> 2016 | O2: =DataParaIniciar -> Domingo
B3: Mês do Calendário | J3: Ano do Calendário | O3: Primeiro dia da semana
B5: =INDEX(calendário,,1) -> 42519 | G5: =INDEX(calendário,,2) -> 42520 | L5: =INDEX(calendário,,3) -> 42521 | Q5: =INDEX(calendário,,4) -> 42522 | V5: =INDEX(calendário,,5) -> 42523 | AA5: =INDEX(calendário,,6) -> 42524 | AF5: =INDEX(calendário,,7) -> 42525
C6: =INDEX(calendário,ndx+0,1) -> 2016-05-29 | H6: =INDEX(calendário,ndx+0,2) -> 2016-05-30 | M6: =INDEX(calendário,ndx+0,3) -> 2016-05-31 | R6: =INDEX(calendário,ndx+0,4) -> 2016-06-01 | W6: =INDEX(calendário,ndx+0,5) -> 2016-06-02 | AB6: =INDEX(calendário,ndx+0,6) -> 2016-06-03 | AG6: =INDEX(calendário,ndx+0,7) -> 2016-06-04
C8: =INDEX(calendário,ndx+1,1) -> 2016-06-05 | H8: =INDEX(calendário,ndx+1,2) -> 2016-06-06 | M8: =INDEX(calendário,ndx+1,3) -> 2016-06-07 | R8: =INDEX(calendário,ndx+1,4) -> 2016-06-08 | W8: =INDEX(calendário,ndx+1,5) -> 2016-06-09 | AB8: =INDEX(calendário,ndx+1,6) -> 2016-06-10 | AG8: =INDEX(calendário,ndx+1,7) -> 2016-06-11
C10: =INDEX(calendário,ndx+2,1) -> 2016-06-12 | H10: =INDEX(calendário,ndx+2,2) -> 2016-06-13 | M10: =INDEX(calendário,ndx+2,3) -> 2016-06-14 | R10: =INDEX(calendário,ndx+2,4) -> 2016-06-15 | W10: =INDEX(calendário,ndx+2,5) -> 2016-06-16 | AB10: =INDEX(calendário,ndx+2,6) -> 2016-06-17 | AG10: =INDEX(calendário,ndx+2,7) -> 2016-06-18
C12: =INDEX(calendário,ndx+3,1) -> 2016-06-19 | H12: =INDEX(calendário,ndx+3,2) -> 2016-06-20 | M12: =INDEX(calendário,ndx+3,3) -> 2016-06-21 | R12: =INDEX(calendário,ndx+3,4) -> 2016-06-22 | W12: =INDEX(calendário,ndx+3,5) -> 2016-06-23 | AB12: =INDEX(calendário,ndx+3,6) -> 2016-06-24 | AG12: =INDEX(calendário,ndx+3,7) -> 2016-06-25
C14: =INDEX(calendário,ndx+4,1) -> 2016-06-26 | H14: =INDEX(calendário,ndx+4,2) -> 2016-06-27 | M14: =INDEX(calendário,ndx+4,3) -> 2016-06-28 | R14: =INDEX(calendário,ndx+4,4) -> 2016-06-29 | W14: =INDEX(calendário,ndx+4,5) -> 2016-06-30 | AB14: =INDEX(calendário,ndx+4,6) -> 2016-07-01 | AG14: =INDEX(calendário,ndx+4,7) -> 2016-07-02
C16: =INDEX(calendário,ndx+5,1) -> 2016-07-03 | H16: =INDEX(calendário,ndx+5,2) -> 2016-07-04 | M16: =INDEX(calendário,ndx+5,3) -> 2016-07-05 | R16: =INDEX(calendário,ndx+5,4) -> 2016-07-06 | W16: =INDEX(calendário,ndx+5,5) -> 2016-07-07 | AB16: =INDEX(calendário,ndx+5,6) -> 2016-07-08 | AG16: =INDEX(calendário,ndx+5,7) -> 2016-07-09
C18: Anotações

Sheet 7
B2: =TEXT(EOMONTH('6'!$C$10,0)+1,"mmmm") -> julho | J2: =YEAR(EOMONTH('6'!$C$10,0)+1) -> 2016 | O2: =DataParaIniciar -> Domingo
B3: Mês do Calendário | J3: Ano do Calendário | O3: Primeiro dia da semana
B5: =INDEX(calendário,,1) -> 42547 | G5: =INDEX(calendário,,2) -> 42548 | L5: =INDEX(calendário,,3) -> 42549 | Q5: =INDEX(calendário,,4) -> 42550 | V5: =INDEX(calendário,,5) -> 42551 | AA5: =INDEX(calendário,,6) -> 42552 | AF5: =INDEX(calendário,,7) -> 42553
C6: =INDEX(calendário,ndx+0,1) -> 2016-06-26 | H6: =INDEX(calendário,ndx+0,2) -> 2016-06-27 | M6: =INDEX(calendário,ndx+0,3) -> 2016-06-28 | R6: =INDEX(calendário,ndx+0,4) -> 2016-06-29 | W6: =INDEX(calendário,ndx+0,5) -> 2016-06-30 | AB6: =INDEX(calendário,ndx+0,6) -> 2016-07-01 | AG6: =INDEX(calendário,ndx+0,7) -> 2016-07-02
C8: =INDEX(calendário,ndx+1,1) -> 2016-07-03 | H8: =INDEX(calendário,ndx+1,2) -> 2016-07-04 | M8: =INDEX(calendário,ndx+1,3) -> 2016-07-05 | R8: =INDEX(calendário,ndx+1,4) -> 2016-07-06 | W8: =INDEX(calendário,ndx+1,5) -> 2016-07-07 | AB8: =INDEX(calendário,ndx+1,6) -> 2016-07-08 | AG8: =INDEX(calendário,ndx+1,7) -> 2016-07-09
C10: =INDEX(calendário,ndx+2,1) -> 2016-07-10 | H10: =INDEX(calendário,ndx+2,2) -> 2016-07-11 | M10: =INDEX(calendário,ndx+2,3) -> 2016-07-12 | R10: =INDEX(calendário,ndx+2,4) -> 2016-07-13 | W10: =INDEX(calendário,ndx+2,5) -> 2016-07-14 | AB10: =INDEX(calendário,ndx+2,6) -> 2016-07-15 | AG10: =INDEX(calendário,ndx+2,7) -> 2016-07-16
C12: =INDEX(calendário,ndx+3,1) -> 2016-07-17 | H12: =INDEX(calendário,ndx+3,2) -> 2016-07-18 | M12: =INDEX(calendário,ndx+3,3) -> 2016-07-19 | R12: =INDEX(calendário,ndx+3,4) -> 2016-07-20 | W12: =INDEX(calendário,ndx+3,5) -> 2016-07-21 | AB12: =INDEX(calendário,ndx+3,6) -> 2016-07-22 | AG12: =INDEX(calendário,ndx+3,7) -> 2016-07-23
C14: =INDEX(calendário,ndx+4,1) -> 2016-07-24 | H14: =INDEX(calendário,ndx+4,2) -> 2016-07-25 | M14: =INDEX(calendário,ndx+4,3) -> 2016-07-26 | R14: =INDEX(calendário,ndx+4,4) -> 2016-07-27 | W14: =INDEX(calendário,ndx+4,5) -> 2016-07-28 | AB14: =INDEX(calendário,ndx+4,6) -> 2016-07-29 | AG14: =INDEX(calendário,ndx+4,7) -> 2016-07-30
C16: =INDEX(calendário,ndx+5,1) -> 2016-07-31 | H16: =INDEX(calendário,ndx+5,2) -> 2016-08-01 | M16: =INDEX(calendário,ndx+5,3) -> 2016-08-02 | R16: =INDEX(calendário,ndx+5,4) -> 2016-08-03 | W16: =INDEX(calendário,ndx+5,5) -> 2016-08-04 | AB16: =INDEX(calendário,ndx+5,6) -> 2016-08-05 | AG16: =INDEX(calendário,ndx+5,7) -> 2016-08-06
C18: Anotações

Sheet 8
B2: =TEXT(EOMONTH('7'!$C$10,0)+1,"mmmm") -> agosto | J2: =YEAR(EOMONTH('7'!$C$10,0)+1) -> 2016 | O2: =DataParaIniciar -> Domingo
B3: Mês do Calendário | J3: Ano do Calendário | O3: Primeiro dia da semana
B5: =INDEX(calendário,,1) -> 42582 | G5: =INDEX(calendário,,2) -> 42583 | L5: =INDEX(calendário,,3) -> 42584 | Q5: =INDEX(calendário,,4) -> 42585 | V5: =INDEX(calendário,,5) -> 42586 | AA5: =INDEX(calendário,,6) -> 42587 | AF5: =INDEX(calendário,,7) -> 42588
C6: =INDEX(calendário,ndx+0,1) -> 2016-07-31 | H6: =INDEX(calendário,ndx+0,2) -> 2016-08-01 | M6: =INDEX(calendário,ndx+0,3) -> 2016-08-02 | R6: =INDEX(calendário,ndx+0,4) -> 2016-08-03 | W6: =INDEX(calendário,ndx+0,5) -> 2016-08-04 | AB6: =INDEX(calendário,ndx+0,6) -> 2016-08-05 | AG6: =INDEX(calendário,ndx+0,7) -> 2016-08-06
C8: =INDEX(calendário,ndx+1,1) -> 2016-08-07 | H8: =INDEX(calendário,ndx+1,2) -> 2016-08-08 | M8: =INDEX(calendário,ndx+1,3) -> 2016-08-09 | R8: =INDEX(calendário,ndx+1,4) -> 2016-08-10 | W8: =INDEX(calendário,ndx+1,5) -> 2016-08-11 | AB8: =INDEX(calendário,ndx+1,6) -> 2016-08-12 | AG8: =INDEX(calendário,ndx+1,7) -> 2016-08-13
C10: =INDEX(calendário,ndx+2,1) -> 2016-08-14 | H10: =INDEX(calendário,ndx+2,2) -> 2016-08-15 | M10: =INDEX(calendário,ndx+2,3) -> 2016-08-16 | R10: =INDEX(calendário,ndx+2,4) -> 2016-08-17 | W10: =INDEX(calendário,ndx+2,5) -> 2016-08-18 | AB10: =INDEX(calendário,ndx+2,6) -> 2016-08-19 | AG10: =INDEX(calendário,ndx+2,7) -> 2016-08-20
C12: =INDEX(calendário,ndx+3,1) -> 2016-08-21 | H12: =INDEX(calendário,ndx+3,2) -> 2016-08-22 | M12: =INDEX(calendário,ndx+3,3) -> 2016-08-23 | R12: =INDEX(calendário,ndx+3,4) -> 2016-08-24 | W12: =INDEX(calendário,ndx+3,5) -> 2016-08-25 | AB12: =INDEX(calendário,ndx+3,6) -> 2016-08-26 | AG12: =INDEX(calendário,ndx+3,7) -> 2016-08-27
C14: =INDEX(calendário,ndx+4,1) -> 2016-08-28 | H14: =INDEX(calendário,ndx+4,2) -> 2016-08-29 | M14: =INDEX(calendário,ndx+4,3) -> 2016-08-30 | R14: =INDEX(calendário,ndx+4,4) -> 2016-08-31 | W14: =INDEX(calendário,ndx+4,5) -> 2016-09-01 | AB14: =INDEX(calendário,ndx+4,6) -> 2016-09-02 | AG14: =INDEX(calendário,ndx+4,7) -> 2016-09-03
C16: =INDEX(calendário,ndx+5,1) -> 2016-09-04 | H16: =INDEX(calendário,ndx+5,2) -> 2016-09-05 | M16: =INDEX(calendário,ndx+5,3) -> 2016-09-06 | R16: =INDEX(calendário,ndx+5,4) -> 2016-09-07 | W16: =INDEX(calendário,ndx+5,5) -> 2016-09-08 | AB16: =INDEX(calendário,ndx+5,6) -> 2016-09-09 | AG16: =INDEX(calendário,ndx+5,7) -> 2016-09-10
C18: Anotações

Sheet 9
B2: =TEXT(EOMONTH('8'!$C$10,0)+1,"mmmm") -> setembro | J2: =YEAR(EOMONTH('8'!$C$10,0)+1) -> 2016 | O2: =DataParaIniciar -> Domingo
B3: Mês do Calendário | J3: Ano do Calendário | O3: Primeiro dia da semana
B5: =INDEX(calendário,,1) -> 42610 | G5: =INDEX(calendário,,2) -> 42611 | L5: =INDEX(calendário,,3) -> 42612 | Q5: =INDEX(calendário,,4) -> 42613 | V5: =INDEX(calendário,,5) -> 42614 | AA5: =INDEX(calendário,,6) -> 42615 | AF5: =INDEX(calendário,,7) -> 42616
C6: =INDEX(calendário,ndx+0,1) -> 2016-08-28 | H6: =INDEX(calendário,ndx+0,2) -> 2016-08-29 | M6: =INDEX(calendário,ndx+0,3) -> 2016-08-30 | R6: =INDEX(calendário,ndx+0,4) -> 2016-08-31 | W6: =INDEX(calendário,ndx+0,5) -> 2016-09-01 | AB6: =INDEX(calendário,ndx+0,6) -> 2016-09-02 | AG6: =INDEX(calendário,ndx+0,7) -> 2016-09-03
C8: =INDEX(calendário,ndx+1,1) -> 2016-09-04 | H8: =INDEX(calendário,ndx+1,2) -> 2016-09-05 | M8: =INDEX(calendário,ndx+1,3) -> 2016-09-06 | R8: =INDEX(calendário,ndx+1,4) -> 2016-09-07 | W8: =INDEX(calendário,ndx+1,5) -> 2016-09-08 | AB8: =INDEX(calendário,ndx+1,6) -> 2016-09-09 | AG8: =INDEX(calendário,ndx+1,7) -> 2016-09-10
C10: =INDEX(calendário,ndx+2,1) -> 2016-09-11 | H10: =INDEX(calendário,ndx+2,2) -> 2016-09-12 | M10: =INDEX(calendário,ndx+2,3) -> 2016-09-13 | R10: =INDEX(calendário,ndx+2,4) -> 2016-09-14 | W10: =INDEX(calendário,ndx+2,5) -> 2016-09-15 | AB10: =INDEX(calendário,ndx+2,6) -> 2016-09-16 | AG10: =INDEX(calendário,ndx+2,7) -> 2016-09-17
C12: =INDEX(calendário,ndx+3,1) -> 2016-09-18 | H12: =INDEX(calendário,ndx+3,2) -> 2016-09-19 | M12: =INDEX(calendário,ndx+3,3) -> 2016-09-20 | R12: =INDEX(calendário,ndx+3,4) -> 2016-09-21 | W12: =INDEX(calendário,ndx+3,5) -> 2016-09-22 | AB12: =INDEX(calendário,ndx+3,6) -> 2016-09-23 | AG12: =INDEX(calendário,ndx+3,7) -> 2016-09-24
C14: =INDEX(calendário,ndx+4,1) -> 2016-09-25 | H14: =INDEX(calendário,ndx+4,2) -> 2016-09-26 | M14: =INDEX(calendário,ndx+4,3) -> 2016-09-27 | R14: =INDEX(calendário,ndx+4,4) -> 2016-09-28 | W14: =INDEX(calendário,ndx+4,5) -> 2016-09-29 | AB14: =INDEX(calendário,ndx+4,6) -> 2016-09-30 | AG14: =INDEX(calendário,ndx+4,7) -> 2016-10-01
C16: =INDEX(calendário,ndx+5,1) -> 2016-10-02 | H16: =INDEX(calendário,ndx+5,2) -> 2016-10-03 | M16: =INDEX(calendário,ndx+5,3) -> 2016-10-04 | R16: =INDEX(calendário,ndx+5,4) -> 2016-10-05 | W16: =INDEX(calendário,ndx+5,5) -> 2016-10-06 | AB16: =INDEX(calendário,ndx+5,6) -> 2016-10-07 | AG16: =INDEX(calendário,ndx+5,7) -> 2016-10-08
C18: Anotações

Sheet 10
B2: =TEXT(EOMONTH('9'!$C$10,0)+1,"mmmm") -> outubro | J2: =YEAR(EOMONTH('9'!$C$10,0)+1) -> 2016 | O2: =DataParaIniciar -> Domingo
B3: Mês do Calendário | J3: Ano do Calendário | O3: Primeiro dia da semana
B5: =INDEX(calendário,,1) -> 42638 | G5: =INDEX(calendário,,2) -> 42639 | L5: =INDEX(calendário,,3) -> 42640 | Q5: =INDEX(calendário,,4) -> 42641 | V5: =INDEX(calendário,,5) -> 42642 | AA5: =INDEX(calendário,,6) -> 42643 | AF5: =INDEX(calendário,,7) -> 42644
C6: =INDEX(calendário,ndx+0,1) -> 2016-09-25 | H6: =INDEX(calendário,ndx+0,2) -> 2016-09-26 | M6: =INDEX(calendário,ndx+0,3) -> 2016-09-27 | R6: =INDEX(calendário,ndx+0,4) -> 2016-09-28 | W6: =INDEX(calendário,ndx+0,5) -> 2016-09-29 | AB6: =INDEX(calendário,ndx+0,6) -> 2016-09-30 | AG6: =INDEX(calendário,ndx+0,7) -> 2016-10-01
C8: =INDEX(calendário,ndx+1,1) -> 2016-10-02 | H8: =INDEX(calendário,ndx+1,2) -> 2016-10-03 | M8: =INDEX(calendário,ndx+1,3) -> 2016-10-04 | R8: =INDEX(calendário,ndx+1,4) -> 2016-10-05 | W8: =INDEX(calendário,ndx+1,5) -> 2016-10-06 | AB8: =INDEX(calendário,ndx+1,6) -> 2016-10-07 | AG8: =INDEX(calendário,ndx+1,7) -> 2016-10-08
C10: =INDEX(calendário,ndx+2,1) -> 2016-10-09 | H10: =INDEX(calendário,ndx+2,2) -> 2016-10-10 | M10: =INDEX(calendário,ndx+2,3) -> 2016-10-11 | R10: =INDEX(calendário,ndx+2,4) -> 2016-10-12 | W10: =INDEX(calendário,ndx+2,5) -> 2016-10-13 | AB10: =INDEX(calendário,ndx+2,6) -> 2016-10-14 | AG10: =INDEX(calendário,ndx+2,7) -> 2016-10-15
C12: =INDEX(calendário,ndx+3,1) -> 2016-10-16 | H12: =INDEX(calendário,ndx+3,2) -> 2016-10-17 | M12: =INDEX(calendário,ndx+3,3) -> 2016-10-18 | R12: =INDEX(calendário,ndx+3,4) -> 2016-10-19 | W12: =INDEX(calendário,ndx+3,5) -> 2016-10-20 | AB12: =INDEX(calendário,ndx+3,6) -> 2016-10-21 | AG12: =INDEX(calendário,ndx+3,7) -> 2016-10-22
C14: =INDEX(calendário,ndx+4,1) -> 2016-10-23 | H14: =INDEX(calendário,ndx+4,2) -> 2016-10-24 | M14: =INDEX(calendário,ndx+4,3) -> 2016-10-25 | R14: =INDEX(calendário,ndx+4,4) -> 2016-10-26 | W14: =INDEX(calendário,ndx+4,5) -> 2016-10-27 | AB14: =INDEX(calendário,ndx+4,6) -> 2016-10-28 | AG14: =INDEX(calendário,ndx+4,7) -> 2016-10-29
C16: =INDEX(calendário,ndx+5,1) -> 2016-10-30 | H16: =INDEX(calendário,ndx+5,2) -> 2016-10-31 | M16: =INDEX(calendário,ndx+5,3) -> 2016-11-01 | R16: =INDEX(calendário,ndx+5,4) -> 2016-11-02 | W16: =INDEX(calendário,ndx+5,5) -> 2016-11-03 | AB16: =INDEX(calendário,ndx+5,6) -> 2016-11-04 | AG16: =INDEX(calendário,ndx+5,7) -> 2016-11-05
C18: Anotações

Sheet 11
B2: =TEXT(EOMONTH('10'!$C$10,0)+1,"mmmm") -> novembro | J2: =YEAR(EOMONTH('10'!$C$10,0)+1) -> 2016 | O2: =DataParaIniciar -> Domingo
B3: Mês do Calendário | J3: Ano do Calendário | O3: Primeiro dia da semana
B5: =INDEX(calendário,,1) -> 42673 | G5: =INDEX(calendário,,2) -> 42674 | L5: =INDEX(calendário,,3) -> 42675 | Q5: =INDEX(calendário,,4) -> 42676 | V5: =INDEX(calendário,,5) -> 42677 | AA5: =INDEX(calendário,,6) -> 42678 | AF5: =INDEX(calendário,,7) -> 42679
C6: =INDEX(calendário,ndx+0,1) -> 2016-10-30 | H6: =INDEX(calendário,ndx+0,2) -> 2016-10-31 | M6: =INDEX(calendário,ndx+0,3) -> 2016-11-01 | R6: =INDEX(calendário,ndx+0,4) -> 2016-11-02 | W6: =INDEX(calendário,ndx+0,5) -> 2016-11-03 | AB6: =INDEX(calendário,ndx+0,6) -> 2016-11-04 | AG6: =INDEX(calendário,ndx+0,7) -> 2016-11-05
C8: =INDEX(calendário,ndx+1,1) -> 2016-11-06 | H8: =INDEX(calendário,ndx+1,2) -> 2016-11-07 | M8: =INDEX(calendário,ndx+1,3) -> 2016-11-08 | R8: =INDEX(calendário,ndx+1,4) -> 2016-11-09 | W8: =INDEX(calendário,ndx+1,5) -> 2016-11-10 | AB8: =INDEX(calendário,ndx+1,6) -> 2016-11-11 | AG8: =INDEX(calendário,ndx+1,7) -> 2016-11-12
C10: =INDEX(calendário,ndx+2,1) -> 2016-11-13 | H10: =INDEX(calendário,ndx+2,2) -> 2016-11-14 | M10: =INDEX(calendário,ndx+2,3) -> 2016-11-15 | R10: =INDEX(calendário,ndx+2,4) -> 2016-11-16 | W10: =INDEX(calendário,ndx+2,5) -> 2016-11-17 | AB10: =INDEX(calendário,ndx+2,6) -> 2016-11-18 | AG10: =INDEX(calendário,ndx+2,7) -> 2016-11-19
C12: =INDEX(calendário,ndx+3,1) -> 2016-11-20 | H12: =INDEX(calendário,ndx+3,2) -> 2016-11-21 | M12: =INDEX(calendário,ndx+3,3) -> 2016-11-22 | R12: =INDEX(calendário,ndx+3,4) -> 2016-11-23 | W12: =INDEX(calendário,ndx+3,5) -> 2016-11-24 | AB12: =INDEX(calendário,ndx+3,6) -> 2016-11-25 | AG12: =INDEX(calendário,ndx+3,7) -> 2016-11-26
C14: =INDEX(calendário,ndx+4,1) -> 2016-11-27 | H14: =INDEX(calendário,ndx+4,2) -> 2016-11-28 | M14: =INDEX(calendário,ndx+4,3) -> 2016-11-29 | R14: =INDEX(calendário,ndx+4,4) -> 2016-11-30 | W14: =INDEX(calendário,ndx+4,5) -> 2016-12-01 | AB14: =INDEX(calendário,ndx+4,6) -> 2016-12-02 | AG14: =INDEX(calendário,ndx+4,7) -> 2016-12-03
C16: =INDEX(calendário,ndx+5,1) -> 2016-12-04 | H16: =INDEX(calendário,ndx+5,2) -> 2016-12-05 | M16: =INDEX(calendário,ndx+5,3) -> 2016-12-06 | R16: =INDEX(calendário,ndx+5,4) -> 2016-12-07 | W16: =INDEX(calendário,ndx+5,5) -> 2016-12-08 | AB16: =INDEX(calendário,ndx+5,6) -> 2016-12-09 | AG16: =INDEX(calendário,ndx+5,7) -> 2016-12-10
C18: Anotações

Sheet 12
B2: =TEXT(EOMONTH('11'!$C$10,0)+1,"mmmm") -> dezembro | J2: =YEAR(EOMONTH('11'!$C$10,0)+1) -> 2016 | O2: =DataParaIniciar -> Domingo
B3: Mês do Calendário | J3: Ano do Calendário | O3: Primeiro dia da semana
B5: =INDEX(calendário,,1) -> 42701 | G5: =INDEX(calendário,,2) -> 42702 | L5: =INDEX(calendário,,3) -> 42703 | Q5: =INDEX(calendário,,4) -> 42704 | V5: =INDEX(calendário,,5) -> 42705 | AA5: =INDEX(calendário,,6) -> 42706 | AF5: =INDEX(calendário,,7) -> 42707
C6: =INDEX(calendário,ndx+0,1) -> 2016-11-27 | H6: =INDEX(calendário,ndx+0,2) -> 2016-11-28 | M6: =INDEX(calendário,ndx+0,3) -> 2016-11-29 | R6: =INDEX(calendário,ndx+0,4) -> 2016-11-30 | W6: =INDEX(calendário,ndx+0,5) -> 2016-12-01 | AB6: =INDEX(calendário,ndx+0,6) -> 2016-12-02 | AG6: =INDEX(calendário,ndx+0,7) -> 2016-12-03
C8: =INDEX(calendário,ndx+1,1) -> 2016-12-04 | H8: =INDEX(calendário,ndx+1,2) -> 2016-12-05 | M8: =INDEX(calendário,ndx+1,3) -> 2016-12-06 | R8: =INDEX(calendário,ndx+1,4) -> 2016-12-07 | W8: =INDEX(calendário,ndx+1,5) -> 2016-12-08 | AB8: =INDEX(calendário,ndx+1,6) -> 2016-12-09 | AG8: =INDEX(calendário,ndx+1,7) -> 2016-12-10
C10: =INDEX(calendário,ndx+2,1) -> 2016-12-11 | H10: =INDEX(calendário,ndx+2,2) -> 2016-12-12 | M10: =INDEX(calendário,ndx+2,3) -> 2016-12-13 | R10: =INDEX(calendário,ndx+2,4) -> 2016-12-14 | W10: =INDEX(calendário,ndx+2,5) -> 2016-12-15 | AB10: =INDEX(calendário,ndx+2,6) -> 2016-12-16 | AG10: =INDEX(calendário,ndx+2,7) -> 2016-12-17
C12: =INDEX(calendário,ndx+3,1) -> 2016-12-18 | H12: =INDEX(calendário,ndx+3,2) -> 2016-12-19 | M12: =INDEX(calendário,ndx+3,3) -> 2016-12-20 | R12: =INDEX(calendário,ndx+3,4) -> 2016-12-21 | W12: =INDEX(calendário,ndx+3,5) -> 2016-12-22 | AB12: =INDEX(calendário,ndx+3,6) -> 2016-12-23 | AG12: =INDEX(calendário,ndx+3,7) -> 2016-12-24
C14: =INDEX(calendário,ndx+4,1) -> 2016-12-25 | H14: =INDEX(calendário,ndx+4,2) -> 2016-12-26 | M14: =INDEX(calendário,ndx+4,3) -> 2016-12-27 | R14: =INDEX(calendário,ndx+4,4) -> 2016-12-28 | W14: =INDEX(calendário,ndx+4,5) -> 2016-12-29 | AB14: =INDEX(calendário,ndx+4,6) -> 2016-12-30 | AG14: =INDEX(calendário,ndx+4,7) -> 2016-12-31
C16: =INDEX(calendário,ndx+5,1) -> 2017-01-01 | H16: =INDEX(calendário,ndx+5,2) -> 2017-01-02 | M16: =INDEX(calendário,ndx+5,3) -> 2017-01-03 | R16: =INDEX(calendário,ndx+5,4) -> 2017-01-04 | W16: =INDEX(calendário,ndx+5,5) -> 2017-01-05 | AB16: =INDEX(calendário,ndx+5,6) -> 2017-01-06 | AG16: =INDEX(calendário,ndx+5,7) -> 2017-01-07
C18: Anotações
